[Event "Titled Tuesday Blitz January 11 2022"]
[White "Fridman, Daniel"]
[Black "Sargsyan, Anna M."]
[WhiteFideId "11600454"]
[BlackFideId "13308130"]
[WhiteElo "2514"]
[BlackElo "2271"]
[Result "0-1"]
[Round "09"]
[TimeControl "180+1"]
[Date "2022.01.11"]
[WhiteClock "0:00:11"]
[BlackClock "0:00:14"]

1. d4 {[%clk 0:03:00]}  d5 {[%clk 0:02:57]} 2. Nf3 {[%clk 0:03:01]}  Nf6 {[%clk 0:02:56]} 3. c4 {[%clk 0:03:01]}  c6 {[%clk 0:02:57]} 4. g3 {[%clk 0:03:01]}  Bf5 {[%clk 0:02:56]} 5. Nc3 {[%clk 0:03:00]}  e6 {[%clk 0:02:57]} 6. Nh4 {[%clk 0:03:00]}  Bg6 {[%clk 0:02:55]} 7. Qb3 {[%clk 0:02:59]}  Qb6 {[%clk 0:02:54]} 8. c5 {[%clk 0:03:00]}  Qc7 {[%clk 0:02:43]} 9. Bf4 {[%clk 0:02:59]}  Qc8 {[%clk 0:02:44]} 10. Bg2 {[%clk 0:02:56]}  Nbd7 {[%clk 0:02:43]} 11. Nxg6 {[%clk 0:02:55]}  hxg6 {[%clk 0:02:43]} 12. h4 {[%clk 0:02:53]}  e5 {[%clk 0:02:39]} 13. dxe5 {[%clk 0:02:50]}  Nxc5 {[%clk 0:02:37]} 14. Qc2 {[%clk 0:02:48]}  Nfd7 {[%clk 0:02:35]} 15. Rc1 {[%clk 0:02:46]}  Ne6 {[%clk 0:02:33]} 16. Nxd5 {[%clk 0:02:46]}  Qd8 {[%clk 0:02:25]} 17. Nc3 {[%clk 0:02:45]}  Nxf4 {[%clk 0:02:23]} 18. gxf4 {[%clk 0:02:46]}  Rxh4 {[%clk 0:02:24]} 19. e6 {[%clk 0:02:40]}  Rxh1+ {[%clk 0:02:17]} 20. Bxh1 {[%clk 0:02:41]}  Nc5 {[%clk 0:02:00]} 21. exf7+ {[%clk 0:02:33]}  Kxf7 {[%clk 0:02:01]} 22. b4 {[%clk 0:02:05]}  Ne6 {[%clk 0:01:41]} 23. f5 {[%clk 0:01:47]}  gxf5 {[%clk 0:01:37]} 24. Qxf5+ {[%clk 0:01:48]}  Qf6 {[%clk 0:01:37]} 25. Qh5+ {[%clk 0:01:39]}  g6 {[%clk 0:01:35]} 26. Qg4 {[%clk 0:01:36]}  Re8 {[%clk 0:01:28]} 27. Kf1 {[%clk 0:01:34]}  Nf4 {[%clk 0:01:19]} 28. Ne4 {[%clk 0:01:31]}  Qf5 {[%clk 0:01:18]} 29. Ng5+ {[%clk 0:01:20]}  Kg7 {[%clk 0:00:53]} 30. Qxf5 {[%clk 0:01:12]}  gxf5 {[%clk 0:00:54]} 31. b5 {[%clk 0:01:12]}  cxb5 {[%clk 0:00:38]} 32. e3 {[%clk 0:01:12]}  Nd3 {[%clk 0:00:33]} 33. Rd1 {[%clk 0:00:57]}  Nc5 {[%clk 0:00:29]} 34. Rd5 {[%clk 0:00:55]}  f4 {[%clk 0:00:20]} 35. exf4 {[%clk 0:00:53]}  b6 {[%clk 0:00:21]} 36. Rf5 {[%clk 0:00:45]}  Kg6 {[%clk 0:00:19]} 37. Rf7 {[%clk 0:00:43]}  Bh6 {[%clk 0:00:17]} 38. Rxa7 {[%clk 0:00:42]}  Rf8 {[%clk 0:00:13]} 39. Bc6 {[%clk 0:00:29]}  Rxf4 {[%clk 0:00:13]} 40. Nh3 {[%clk 0:00:30]}  Rb4 {[%clk 0:00:12]} 41. Be8+ {[%clk 0:00:27]}  Kf6 {[%clk 0:00:13]} 42. Rf7+ {[%clk 0:00:23]}  Ke6 {[%clk 0:00:13]} 43. Rh7 {[%clk 0:00:21]}  Bf8 {[%clk 0:00:13]} 44. Kg2 {[%clk 0:00:18]}  Ne4 {[%clk 0:00:11]} 45. Bg6 {[%clk 0:00:13]}  Nf6 {[%clk 0:00:11]} 46. Rb7 {[%clk 0:00:11]}  Bc5 {[%clk 0:00:11]} 47. Ng5+ {[%clk 0:00:11]}  Kd5 {[%clk 0:00:11]} 48. Bf7+ {[%clk 0:00:09]}  Kc6 {[%clk 0:00:11]} 49. Ra7 {[%clk 0:00:09]}  Rb2 {[%clk 0:00:11]} 50. Nh3 {[%clk 0:00:07]}  Ng4 {[%clk 0:00:12]} 51. Be8+ {[%clk 0:00:05]}  Kd6 {[%clk 0:00:11]} 52. Rd7+ {[%clk 0:00:04]}  Ke6 {[%clk 0:00:11]} 53. Rf7 {[%clk 0:00:05]}  Ne3+ {[%clk 0:00:10]} 54. Kf3 {[%clk 0:00:05]}  Nf5 {[%clk 0:00:10]} 55. Ng5+ {[%clk 0:00:03]}  Ke5 {[%clk 0:00:10]} 56. Kg4 {[%clk 0:00:04]}  Nd6 {[%clk 0:00:10]} 57. Kh5 {[%clk 0:00:05]}  Nxf7 {[%clk 0:00:10]} 58. Nxf7+ {[%clk 0:00:06]}  Kf6 {[%clk 0:00:10]} 59. Ng5 {[%clk 0:00:06]}  Rxf2 {[%clk 0:00:11]} 60. Ne4+ {[%clk 0:00:07]}  Ke7 {[%clk 0:00:11]} 61. Nxf2 {[%clk 0:00:08]}  Kxe8 {[%clk 0:00:11]} 62. Ne4 {[%clk 0:00:08]}  Kd7 {[%clk 0:00:11]} 63. Kg4 {[%clk 0:00:08]}  Ke6 {[%clk 0:00:12]} 64. Kf3 {[%clk 0:00:09]}  Kd5 {[%clk 0:00:12]} 65. Nf6+ {[%clk 0:00:09]}  Kc4 {[%clk 0:00:13]} 66. Ke4 {[%clk 0:00:09]}  Kb4 {[%clk 0:00:13]} 67. Nd7 {[%clk 0:00:10]}  Ka3 {[%clk 0:00:13]} 68. Kd3 {[%clk 0:00:10]}  Kxa2 {[%clk 0:00:13]} 69. Ne5 {[%clk 0:00:11]}  Ka3 {[%clk 0:00:14]} 70. Nc6 {[%clk 0:00:10]}  b4 {[%clk 0:00:14]} 71. Kc2 {[%clk 0:00:11]}  Ka2 {[%clk 0:00:13]} 72. Ne5 {[%clk 0:00:10]}  b3+ {[%clk 0:00:13]} 73. Kc3 {[%clk 0:00:11]}  b2 {[%clk 0:00:14]} 0-1


[Site "https://www.chess.com"]

[Event "Titled Tuesday Blitz January 11 2022"]
[White "Gabrielian, Artur"]
[Black "Tasev, Dejan"]
[WhiteFideId "4131002"]
[BlackFideId "936618"]
[WhiteElo "2440"]
[BlackElo "2253"]
[Result "0-1"]
[Round "09"]
[TimeControl "180+1"]
[Date "2022.01.11"]
[WhiteClock "0:00:47"]
[BlackClock "0:00:42"]

1. e4 {[%clk 0:03:00]}  c6 {[%clk 0:02:58]} 2. d4 {[%clk 0:03:00]}  d5 {[%clk 0:02:57]} 3. e5 {[%clk 0:03:00]}  Bf5 {[%clk 0:02:57]} 4. h4 {[%clk 0:03:00]}  h6 {[%clk 0:02:57]} 5. g4 {[%clk 0:02:59]}  Be4 {[%clk 0:02:57]} 6. f3 {[%clk 0:02:59]}  Bg6 {[%clk 0:02:57]} 7. h5 {[%clk 0:02:59]}  Bh7 {[%clk 0:02:57]} 8. e6 {[%clk 0:02:59]}  Qd6 {[%clk 0:02:57]} 9. exf7+ {[%clk 0:02:58]}  Kxf7 {[%clk 0:02:56]} 10. f4 {[%clk 0:02:47]}  Qe6+ {[%clk 0:02:56]} 11. Be2 {[%clk 0:02:37]}  Qe4 {[%clk 0:02:55]} 12. Nf3 {[%clk 0:02:34]}  Qxc2 {[%clk 0:02:54]} 13. Ne5+ {[%clk 0:02:25]}  Ke8 {[%clk 0:02:50]} 14. f5 {[%clk 0:02:23]}  Qxd1+ {[%clk 0:02:49]} 15. Bxd1 {[%clk 0:02:20]}  Nf6 {[%clk 0:02:32]} 16. Nc3 {[%clk 0:02:19]}  Nbd7 {[%clk 0:02:26]} 17. Bf4 {[%clk 0:02:19]}  e6 {[%clk 0:02:12]} 18. fxe6 {[%clk 0:01:47]}  Nxe5 {[%clk 0:02:10]} 19. Bxe5 {[%clk 0:01:47]}  Ke7 {[%clk 0:01:45]} 20. Ne2 {[%clk 0:01:24]}  Kxe6 {[%clk 0:01:42]} 21. Nf4+ {[%clk 0:01:23]}  Kd7 {[%clk 0:01:27]} 22. Ba4 {[%clk 0:01:22]}  Bb4+ {[%clk 0:01:24]} 23. Ke2 {[%clk 0:01:18]}  Rae8 {[%clk 0:01:16]} 24. Rhg1 {[%clk 0:01:11]}  Bd6 {[%clk 0:01:07]} 25. Kf3 {[%clk 0:01:00]}  Bxe5 {[%clk 0:01:04]} 26. dxe5 {[%clk 0:01:01]}  Rxe5 {[%clk 0:01:04]} 27. Rae1 {[%clk 0:01:01]}  Rhe8 {[%clk 0:01:02]} 28. Rxe5 {[%clk 0:01:01]}  Rxe5 {[%clk 0:01:00]} 29. Bd1 {[%clk 0:01:02]}  Ne4 {[%clk 0:00:53]} 30. Be2 {[%clk 0:00:58]}  Ng5+ {[%clk 0:00:52]} 31. Kf2 {[%clk 0:00:55]}  Re4 {[%clk 0:00:45]} 32. Kg3 {[%clk 0:00:47]}  Rxf4 {[%clk 0:00:42]} 0-1


[Site "https://www.chess.com"]

[Event "Titled Tuesday Blitz January 11 2022"]
[White "Hakobyan, Aram"]
[Black "Guseinov, Gadir"]
[WhiteFideId "13306677"]
[BlackFideId "13401378"]
[WhiteElo "2557"]
[BlackElo "2581"]
[Result "1-0"]
[Round "09"]
[TimeControl "180+1"]
[Date "2022.01.11"]
[WhiteClock "0:01:42"]
[BlackClock "0:01:34"]

1. b3 {[%clk 0:02:56]}  d6 {[%clk 0:02:59]} 2. Bb2 {[%clk 0:02:55]}  e5 {[%clk 0:02:59]} 3. c4 {[%clk 0:02:56]}  g6 {[%clk 0:02:59]} 4. g3 {[%clk 0:02:56]}  Bg7 {[%clk 0:03:00]} 5. Bg2 {[%clk 0:02:57]}  f5 {[%clk 0:02:59]} 6. Nc3 {[%clk 0:02:56]}  Nf6 {[%clk 0:02:59]} 7. d3 {[%clk 0:02:56]}  O-O {[%clk 0:02:59]} 8. Nf3 {[%clk 0:02:56]}  Nc6 {[%clk 0:02:54]} 9. O-O {[%clk 0:02:53]}  Kh8 {[%clk 0:02:53]} 10. Nd2 {[%clk 0:02:51]}  Be6 {[%clk 0:02:51]} 11. Nd5 {[%clk 0:02:51]}  Rb8 {[%clk 0:02:43]} 12. Rc1 {[%clk 0:02:46]}  Bxd5 {[%clk 0:02:40]} 13. cxd5 {[%clk 0:02:46]}  Nb4 {[%clk 0:02:40]} 14. Nc4 {[%clk 0:02:12]}  Nbxd5 {[%clk 0:02:34]} 15. e4 {[%clk 0:02:13]}  fxe4 {[%clk 0:02:27]} 16. dxe4 {[%clk 0:02:13]}  Nb4 {[%clk 0:02:21]} 17. Qd2 {[%clk 0:02:07]}  Nc6 {[%clk 0:02:17]} 18. f4 {[%clk 0:02:06]}  exf4 {[%clk 0:02:13]} 19. gxf4 {[%clk 0:02:07]}  Qe7 {[%clk 0:02:12]} 20. Rce1 {[%clk 0:02:05]}  Rbe8 {[%clk 0:01:57]} 21. e5 {[%clk 0:02:05]}  dxe5 {[%clk 0:01:56]} 22. Ba3 {[%clk 0:02:06]}  Qd8 {[%clk 0:01:43]} 23. Qxd8 {[%clk 0:02:04]}  Rxd8 {[%clk 0:01:42]} 24. Bxf8 {[%clk 0:02:02]}  Bxf8 {[%clk 0:01:42]} 25. Bxc6 {[%clk 0:01:44]}  bxc6 {[%clk 0:01:40]} 26. fxe5 {[%clk 0:01:45]}  Bc5+ {[%clk 0:01:36]} 27. Kg2 {[%clk 0:01:42]}  Rd2+ {[%clk 0:01:34]} 28. Nxd2 {[%clk 0:01:42]} 1-0


[Site "https://www.chess.com"]

[Event "Titled Tuesday Blitz January 11 2022"]
[White "Hess, Robert"]
[Black "Goncalves, Ivan Mesquita V"]
[WhiteFideId "2022036"]
[BlackFideId "2114224"]
[WhiteElo "2557"]
[BlackElo "2299"]
[Result "1-0"]
[Round "09"]
[TimeControl "180+1"]
[Date "2022.01.11"]
[WhiteClock "0:02:29"]
[BlackClock "0:01:50"]

1. b3 {[%clk 0:03:00]}  c5 {[%clk 0:02:58]} 2. Bb2 {[%clk 0:03:01]}  b6 {[%clk 0:02:58]} 3. d3 {[%clk 0:03:00]}  Bb7 {[%clk 0:02:58]} 4. Nd2 {[%clk 0:03:01]}  Nf6 {[%clk 0:02:58]} 5. e3 {[%clk 0:03:02]}  e6 {[%clk 0:02:58]} 6. Ne2 {[%clk 0:03:02]}  Be7 {[%clk 0:02:58]} 7. h3 {[%clk 0:03:02]}  O-O {[%clk 0:02:59]} 8. a3 {[%clk 0:03:03]}  d5 {[%clk 0:02:54]} 9. g4 {[%clk 0:03:02]}  Nc6 {[%clk 0:02:51]} 10. Bg2 {[%clk 0:03:02]}  e5 {[%clk 0:02:50]} 11. Ng3 {[%clk 0:03:00]}  d4 {[%clk 0:02:23]} 12. Nf5 {[%clk 0:02:57]}  Qd7 {[%clk 0:02:19]} 13. Nc4 {[%clk 0:02:43]}  b5 {[%clk 0:02:11]} 14. Bxc6 {[%clk 0:02:36]}  Bxc6 {[%clk 0:01:55]} 15. Nxe5 {[%clk 0:02:36]}  Qb7 {[%clk 0:01:53]} 16. Nxc6 {[%clk 0:02:33]}  Bd8 {[%clk 0:01:51]} 17. Qf3 {[%clk 0:02:32]}  Kh8 {[%clk 0:01:50]} 18. Ncxd4 {[%clk 0:02:29]} 1-0


[Site "https://www.chess.com"]

[Event "Titled Tuesday Blitz January 11 2022"]
[White "Kobalia, Mikhail"]
[Black "Moskalenko, Alexander"]
[WhiteFideId "4119150"]
[BlackFideId "4155351"]
[WhiteElo "2667"]
[BlackElo "2515"]
[Result "0-1"]
[Round "09"]
[TimeControl "180+1"]
[Date "2022.01.11"]
[WhiteClock "0:02:03"]
[BlackClock "0:00:34"]

1. e4 {[%clk 0:03:00]}  c6 {[%clk 0:02:44]} 2. d4 {[%clk 0:03:00]}  d5 {[%clk 0:02:44]} 3. exd5 {[%clk 0:03:00]}  cxd5 {[%clk 0:02:44]} 4. Bd3 {[%clk 0:03:00]}  Nc6 {[%clk 0:02:44]} 5. c3 {[%clk 0:03:00]}  Nf6 {[%clk 0:02:45]} 6. Bf4 {[%clk 0:02:59]}  g6 {[%clk 0:02:46]} 7. Nf3 {[%clk 0:02:56]}  Bf5 {[%clk 0:02:45]} 8. Bxf5 {[%clk 0:02:53]}  gxf5 {[%clk 0:02:46]} 9. Nbd2 {[%clk 0:02:52]}  e6 {[%clk 0:02:46]} 10. Qb3 {[%clk 0:02:49]}  Qb6 {[%clk 0:02:41]} 11. Qxb6 {[%clk 0:02:48]}  axb6 {[%clk 0:02:42]} 12. a3 {[%clk 0:02:48]}  Ne4 {[%clk 0:02:37]} 13. Nb3 {[%clk 0:02:46]}  Bd6 {[%clk 0:02:35]} 14. Bxd6 {[%clk 0:02:45]}  Nxd6 {[%clk 0:02:36]} 15. Nc1 {[%clk 0:02:44]}  f6 {[%clk 0:02:18]} 16. Nd3 {[%clk 0:02:43]}  Kd7 {[%clk 0:02:15]} 17. O-O {[%clk 0:02:42]}  h5 {[%clk 0:02:11]} 18. g3 {[%clk 0:02:42]}  Ne4 {[%clk 0:02:10]} 19. Rfe1 {[%clk 0:02:42]}  Rag8 {[%clk 0:02:09]} 20. Nh4 {[%clk 0:02:39]}  Rh7 {[%clk 0:01:49]} 21. Re2 {[%clk 0:02:38]}  Re7 {[%clk 0:01:48]} 22. Rae1 {[%clk 0:02:36]}  Ng5 {[%clk 0:01:42]} 23. Nf4 {[%clk 0:02:31]}  b5 {[%clk 0:01:25]} 24. Nxh5 {[%clk 0:02:28]}  Rf7 {[%clk 0:01:16]} 25. Rxe6 {[%clk 0:02:24]}  Nxe6 {[%clk 0:00:34]} 26. Nxf5 {[%clk 0:02:18]}  Rg5 {[%clk 0:00:33]} 27. Nh6 {[%clk 0:02:04]}  Rxh5 {[%clk 0:00:33]} 28. Nxf7 {[%clk 0:02:03]}  Ke7 {[%clk 0:00:34]} 0-1


[Site "https://www.chess.com"]

[Event "Titled Tuesday Blitz January 11 2022"]
[White "Lenderman, Aleksandr"]
[Black "Mokshanov, Alexey"]
[WhiteFideId "2021285"]
[BlackFideId "24121657"]
[WhiteElo "2651"]
[BlackElo "2141"]
[Result "1-0"]
[Round "09"]
[TimeControl "180+1"]
[Date "2022.01.11"]
[WhiteClock "0:00:15"]
[BlackClock "0:00:17"]

1. Nf3 {[%clk 0:03:00]}  d5 {[%clk 0:02:52]} 2. e3 {[%clk 0:02:59]}  Nf6 {[%clk 0:02:51]} 3. c4 {[%clk 0:02:59]}  e6 {[%clk 0:02:51]} 4. Nc3 {[%clk 0:02:59]}  Be7 {[%clk 0:02:51]} 5. b3 {[%clk 0:02:59]}  dxc4 {[%clk 0:02:47]} 6. Bxc4 {[%clk 0:02:57]}  a6 {[%clk 0:02:46]} 7. Bb2 {[%clk 0:02:55]}  b5 {[%clk 0:02:46]} 8. Be2 {[%clk 0:02:53]}  Bb7 {[%clk 0:02:46]} 9. O-O {[%clk 0:02:52]}  O-O {[%clk 0:02:45]} 10. a4 {[%clk 0:02:52]}  b4 {[%clk 0:02:37]} 11. Nb1 {[%clk 0:02:51]}  c5 {[%clk 0:02:37]} 12. d3 {[%clk 0:02:50]}  Nd5 {[%clk 0:02:31]} 13. Qc2 {[%clk 0:02:49]}  Nd7 {[%clk 0:02:30]} 14. Rc1 {[%clk 0:02:46]}  Bf6 {[%clk 0:02:28]} 15. Nbd2 {[%clk 0:02:33]}  Bxb2 {[%clk 0:02:22]} 16. Qxb2 {[%clk 0:02:33]}  Nc3 {[%clk 0:02:19]} 17. Nb1 {[%clk 0:02:30]}  Nxe2+ {[%clk 0:02:18]} 18. Qxe2 {[%clk 0:02:31]}  Bxf3 {[%clk 0:02:18]} 19. gxf3 {[%clk 0:02:26]}  Ne5 {[%clk 0:02:18]} 20. Rxc5 {[%clk 0:02:19]}  Nxd3 {[%clk 0:02:02]} 21. Rc4 {[%clk 0:02:19]}  Ne5 {[%clk 0:01:57]} 22. Rd4 {[%clk 0:02:16]}  Qf6 {[%clk 0:01:56]} 23. Nd2 {[%clk 0:01:58]}  Nc6 {[%clk 0:01:54]} 24. Ne4 {[%clk 0:01:58]}  Qg6+ {[%clk 0:01:53]} 25. Kh1 {[%clk 0:01:58]}  Nxd4 {[%clk 0:01:53]} 26. exd4 {[%clk 0:01:59]}  Rfd8 {[%clk 0:01:47]} 27. Rg1 {[%clk 0:01:59]}  Qf5 {[%clk 0:01:44]} 28. Qe3 {[%clk 0:01:53]}  Rac8 {[%clk 0:01:33]} 29. Rg5 {[%clk 0:01:45]}  Qh3 {[%clk 0:01:24]} 30. Rg3 {[%clk 0:01:41]}  Qh4 {[%clk 0:01:11]} 31. Rg4 {[%clk 0:01:37]}  Qh3 {[%clk 0:00:53]} 32. d5 {[%clk 0:01:04]}  Rxd5 {[%clk 0:00:42]} 33. Nf6+ {[%clk 0:01:04]}  Kh8 {[%clk 0:00:43]} 34. Nxd5 {[%clk 0:01:03]}  exd5 {[%clk 0:00:41]} 35. Rg3 {[%clk 0:01:02]}  Qe6 {[%clk 0:00:38]} 36. Qd4 {[%clk 0:00:59]}  f6 {[%clk 0:00:27]} 37. Qxb4 {[%clk 0:00:54]}  Qe5 {[%clk 0:00:25]} 38. Rxg7 {[%clk 0:00:39]}  Kxg7 {[%clk 0:00:23]} 39. Qg4+ {[%clk 0:00:38]}  Kh6 {[%clk 0:00:18]} 40. Qxc8 {[%clk 0:00:39]}  d4 {[%clk 0:00:15]} 41. Qd7 {[%clk 0:00:27]}  Qf4 {[%clk 0:00:14]} 42. Kg2 {[%clk 0:00:27]}  Qg5+ {[%clk 0:00:14]} 43. Qg4 {[%clk 0:00:25]}  d3 {[%clk 0:00:13]} 44. Qxg5+ {[%clk 0:00:21]}  Kxg5 {[%clk 0:00:13]} 45. Kf1 {[%clk 0:00:21]}  Kf4 {[%clk 0:00:14]} 46. Ke1 {[%clk 0:00:18]}  Kxf3 {[%clk 0:00:14]} 47. b4 {[%clk 0:00:16]}  Ke4 {[%clk 0:00:14]} 48. Kd2 {[%clk 0:00:13]}  Kd4 {[%clk 0:00:14]} 49. b5 {[%clk 0:00:12]}  axb5 {[%clk 0:00:15]} 50. axb5 {[%clk 0:00:13]}  Kc5 {[%clk 0:00:15]} 51. Kxd3 {[%clk 0:00:14]}  Kxb5 {[%clk 0:00:16]} 52. Ke4 {[%clk 0:00:14]}  Kc6 {[%clk 0:00:17]} 53. Kf5 {[%clk 0:00:15]} 1-0


[Site "https://www.chess.com"]

[Event "Titled Tuesday Blitz January 11 2022"]
[White "Lysyj, Igor"]
[Black "Samunenkov, Ihor"]
[WhiteFideId "4150120"]
[BlackFideId "14187086"]
[WhiteElo "2611"]
[BlackElo "2406"]
[Result "1-0"]
[Round "09"]
[TimeControl "180+1"]
[Date "2022.01.11"]
[WhiteClock "0:00:02"]
[BlackClock "0:00:01"]

1. d4 {[%clk 0:03:00]}  d5 {[%clk 0:02:59]} 2. Nf3 {[%clk 0:03:00]}  Nf6 {[%clk 0:02:54]} 3. g3 {[%clk 0:02:59]}  c5 {[%clk 0:02:53]} 4. dxc5 {[%clk 0:02:58]}  e6 {[%clk 0:02:51]} 5. Bg2 {[%clk 0:02:56]}  Bxc5 {[%clk 0:02:51]} 6. c4 {[%clk 0:02:56]}  O-O {[%clk 0:02:48]} 7. O-O {[%clk 0:02:49]}  d4 {[%clk 0:02:43]} 8. Ne5 {[%clk 0:02:45]}  Qc7 {[%clk 0:02:28]} 9. Nd3 {[%clk 0:02:35]}  e5 {[%clk 0:02:27]} 10. b3 {[%clk 0:02:32]}  Be7 {[%clk 0:02:15]} 11. Bg5 {[%clk 0:02:30]}  Nc6 {[%clk 0:02:05]} 12. Nd2 {[%clk 0:02:28]}  Be6 {[%clk 0:02:02]} 13. Rc1 {[%clk 0:02:19]}  Rad8 {[%clk 0:01:59]} 14. Bxf6 {[%clk 0:02:10]}  Bxf6 {[%clk 0:01:59]} 15. b4 {[%clk 0:02:10]}  Be7 {[%clk 0:01:53]} 16. b5 {[%clk 0:02:05]}  Nb4 {[%clk 0:01:53]} 17. Qa4 {[%clk 0:02:01]}  Nxd3 {[%clk 0:01:49]} 18. exd3 {[%clk 0:02:01]}  b6 {[%clk 0:01:36]} 19. Rce1 {[%clk 0:02:00]}  Rfe8 {[%clk 0:01:24]} 20. Qd1 {[%clk 0:01:52]}  Bb4 {[%clk 0:01:21]} 21. h3 {[%clk 0:01:43]}  f6 {[%clk 0:01:18]} 22. Kh2 {[%clk 0:01:41]}  Bf7 {[%clk 0:01:04]} 23. Be4 {[%clk 0:01:33]}  g6 {[%clk 0:01:02]} 24. Bc6 {[%clk 0:01:33]}  Re7 {[%clk 0:01:01]} 25. Re2 {[%clk 0:01:20]}  Be8 {[%clk 0:00:53]} 26. Bxe8 {[%clk 0:01:15]}  Rdxe8 {[%clk 0:00:54]} 27. Ne4 {[%clk 0:01:12]}  Kg7 {[%clk 0:00:53]} 28. g4 {[%clk 0:01:05]}  f5 {[%clk 0:00:49]} 29. gxf5 {[%clk 0:01:03]}  gxf5 {[%clk 0:00:50]} 30. Ng3 {[%clk 0:01:02]}  Rf7 {[%clk 0:00:45]} 31. f4 {[%clk 0:00:53]}  Bd6 {[%clk 0:00:38]} 32. Rf3 {[%clk 0:00:34]}  Kh8 {[%clk 0:00:32]} 33. Kg2 {[%clk 0:00:33]}  Rg8 {[%clk 0:00:31]} 34. Kh1 {[%clk 0:00:17]}  Qb7 {[%clk 0:00:17]} 35. Rg2 {[%clk 0:00:17]}  exf4 {[%clk 0:00:15]} 36. Nh5 {[%clk 0:00:16]}  Rxg2 {[%clk 0:00:15]} 37. Kxg2 {[%clk 0:00:17]}  Re7 {[%clk 0:00:12]} 38. Kf2 {[%clk 0:00:17]}  Re3 {[%clk 0:00:12]} 39. Nf6 {[%clk 0:00:15]}  Qg7 {[%clk 0:00:08]} 40. Nd5 {[%clk 0:00:15]}  Rxf3+ {[%clk 0:00:03]} 41. Qxf3 {[%clk 0:00:15]}  Qg3+ {[%clk 0:00:04]} 42. Ke2 {[%clk 0:00:14]}  Kg7 {[%clk 0:00:03]} 43. a4 {[%clk 0:00:12]}  Qh2+ {[%clk 0:00:03]} 44. Kf1 {[%clk 0:00:11]}  Qg3 {[%clk 0:00:03]} 45. Ke2 {[%clk 0:00:10]}  Kg6 {[%clk 0:00:03]} 46. Qf2 {[%clk 0:00:04]}  Kg5 {[%clk 0:00:02]} 47. Qf3 {[%clk 0:00:04]}  h6 {[%clk 0:00:02]} 48. h4+ {[%clk 0:00:04]}  Kxh4 {[%clk 0:00:01]} 49. Nf6 {[%clk 0:00:03]}  Kg5 {[%clk 0:00:01]} 50. Nd7 {[%clk 0:00:02]} 1-0


[Site "https://www.chess.com"]

[Event "Titled Tuesday Blitz January 11 2022"]
[White "Maximov, Dmitry"]
[Black "Araujo Sanchez, Josue"]
[WhiteFideId "14105659"]
[BlackFideId "6416896"]
[WhiteElo "2494"]
[BlackElo "2357"]
[Result "1-0"]
[Round "09"]
[TimeControl "180+1"]
[Date "2022.01.11"]
[WhiteClock "0:00:06"]
[BlackClock "0:00:02"]

1. e4 {[%clk 0:03:00]}  c5 {[%clk 0:02:59]} 2. Nf3 {[%clk 0:03:00]}  d6 {[%clk 0:02:59]} 3. c3 {[%clk 0:03:01]}  Nf6 {[%clk 0:02:58]} 4. Bc4 {[%clk 0:03:01]}  Nxe4 {[%clk 0:02:48]} 5. Qa4+ {[%clk 0:03:01]}  Nc6 {[%clk 0:02:44]} 6. Bxf7+ {[%clk 0:03:01]}  Kxf7 {[%clk 0:02:45]} 7. Qxe4 {[%clk 0:03:02]}  d5 {[%clk 0:02:44]} 8. Qf4+ {[%clk 0:03:00]}  Kg8 {[%clk 0:02:42]} 9. d4 {[%clk 0:03:00]}  Qd6 {[%clk 0:02:18]} 10. dxc5 {[%clk 0:02:36]}  Qxc5 {[%clk 0:01:16]} 11. O-O {[%clk 0:02:33]}  e6 {[%clk 0:01:10]} 12. Re1 {[%clk 0:02:24]}  Qd6 {[%clk 0:01:09]} 13. Qe3 {[%clk 0:02:12]}  Bd7 {[%clk 0:01:03]} 14. b3 {[%clk 0:02:03]}  Qc7 {[%clk 0:00:58]} 15. Nbd2 {[%clk 0:01:56]}  Bd6 {[%clk 0:00:48]} 16. c4 {[%clk 0:01:54]}  Nb4 {[%clk 0:00:41]} 17. Bb2 {[%clk 0:01:45]}  h6 {[%clk 0:00:18]} 18. Rac1 {[%clk 0:01:25]}  Nc6 {[%clk 0:00:15]} 19. cxd5 {[%clk 0:01:19]}  exd5 {[%clk 0:00:15]} 20. Qd3 {[%clk 0:01:18]}  Qa5 {[%clk 0:00:13]} 21. Qg6 {[%clk 0:01:12]}  Bf8 {[%clk 0:00:13]} 22. Rxc6 {[%clk 0:00:28]}  bxc6 {[%clk 0:00:08]} 23. Bxg7 {[%clk 0:00:27]}  Bxg7 {[%clk 0:00:04]} 24. Re7 {[%clk 0:00:27]}  Qc3 {[%clk 0:00:04]} 25. Rxd7 {[%clk 0:00:15]}  Qf6 {[%clk 0:00:03]} 26. Qg3 {[%clk 0:00:08]}  Rh7 {[%clk 0:00:03]} 27. h4 {[%clk 0:00:08]}  Rf8 {[%clk 0:00:04]} 28. Nf1 {[%clk 0:00:07]}  Kh8 {[%clk 0:00:03]} 29. Rd6 {[%clk 0:00:07]}  Qe7 {[%clk 0:00:02]} 30. Rxc6 {[%clk 0:00:06]}  Bf6 {[%clk 0:00:02]} 31. h5 {[%clk 0:00:06]}  Rg8 {[%clk 0:00:02]} 32. Qf4 {[%clk 0:00:07]}  Bg5 {[%clk 0:00:01]} 33. Qd4+ {[%clk 0:00:07]}  Rhg7 {[%clk 0:00:01]} 34. Ng3 {[%clk 0:00:07]}  Kh7 {[%clk 0:00:01]} 35. Nxg5+ {[%clk 0:00:07]}  Kh8 {[%clk 0:00:02]} 36. Rxh6# {[%clk 0:00:06]} 1-0


[Site "https://www.chess.com"]

[Event "Titled Tuesday Blitz January 11 2022"]
[White "Nesterov, Arseniy"]
[Black "Gaehwiler, Gabriel"]
[WhiteFideId "24198455"]
[BlackFideId "1314530"]
[WhiteElo "2489"]
[BlackElo "2383"]
[Result "1-0"]
[Round "09"]
[TimeControl "180+1"]
[Date "2022.01.11"]
[WhiteClock "0:00:37"]
[BlackClock "0:00:01"]

1. d4 {[%clk 0:02:57]}  Nf6 {[%clk 0:02:56]} 2. c4 {[%clk 0:02:57]}  g6 {[%clk 0:02:56]} 3. Nc3 {[%clk 0:02:57]}  Bg7 {[%clk 0:02:56]} 4. e4 {[%clk 0:02:57]}  O-O {[%clk 0:02:56]} 5. Be2 {[%clk 0:02:58]}  d6 {[%clk 0:02:55]} 6. Be3 {[%clk 0:02:58]}  e5 {[%clk 0:02:47]} 7. d5 {[%clk 0:02:57]}  h5 {[%clk 0:02:38]} 8. h3 {[%clk 0:02:55]}  Na6 {[%clk 0:02:25]} 9. Nf3 {[%clk 0:02:44]}  Nc5 {[%clk 0:02:20]} 10. Nd2 {[%clk 0:02:42]}  a5 {[%clk 0:02:18]} 11. g4 {[%clk 0:02:42]}  hxg4 {[%clk 0:02:02]} 12. hxg4 {[%clk 0:02:43]}  Nh7 {[%clk 0:01:57]} 13. Nb3 {[%clk 0:02:32]}  b6 {[%clk 0:01:52]} 14. Nxc5 {[%clk 0:02:21]}  bxc5 {[%clk 0:01:40]} 15. Bd3 {[%clk 0:02:21]}  Ng5 {[%clk 0:01:28]} 16. Qe2 {[%clk 0:02:18]}  Bf6 {[%clk 0:01:23]} 17. O-O-O {[%clk 0:02:08]}  Kg7 {[%clk 0:01:22]} 18. f4 {[%clk 0:02:00]}  exf4 {[%clk 0:01:18]} 19. Bxf4 {[%clk 0:02:01]}  Rh8 {[%clk 0:00:58]} 20. e5 {[%clk 0:01:51]}  dxe5 {[%clk 0:00:54]} 21. Bxe5 {[%clk 0:01:52]}  Bd7 {[%clk 0:00:54]} 22. Rxh8 {[%clk 0:01:32]}  Kxh8 {[%clk 0:00:48]} 23. Rf1 {[%clk 0:01:26]}  Bxe5 {[%clk 0:00:33]} 24. Qxe5+ {[%clk 0:01:27]}  Kg8 {[%clk 0:00:32]} 25. Rh1 {[%clk 0:01:14]}  f6 {[%clk 0:00:28]} 26. Qh2 {[%clk 0:01:14]}  Kf7 {[%clk 0:00:25]} 27. Qh6 {[%clk 0:01:10]}  Qg8 {[%clk 0:00:19]} 28. Rf1 {[%clk 0:01:10]}  Ke7 {[%clk 0:00:16]} 29. d6+ {[%clk 0:01:04]}  Kxd6 {[%clk 0:00:05]} 30. Rxf6+ {[%clk 0:01:00]}  Ne6 {[%clk 0:00:05]} 31. Qf4+ {[%clk 0:00:47]}  Ke7 {[%clk 0:00:02]} 32. Nd5+ {[%clk 0:00:48]}  Kd8 {[%clk 0:00:02]} 33. Qe5 {[%clk 0:00:37]}  Qe8 {[%clk 0:00:01]} 34. Bxg6 {[%clk 0:00:37]}  Qf8 {[%clk 0:00:01]} 35. Rxf8+ {[%clk 0:00:37]} 1-0


[Site "https://www.chess.com"]